[Event "Bangabandhu Premier Div League 2022"]
[Site "Dhaka"]
[Date "2022.12.04"]
[Round "5.4"]
[White "Mehdi Hasan Parag"]
[Black "Jabed Al Azad"]
[Result "1/2-1/2"]
[ECO "B12"]
[WhiteElo "2185"]
[BlackElo "2084"]
[Annotator "TA"]
[PlyCount "100"]
[EventDate "2022.11.30"]
[EventType "team-tourn"]
[EventCountry "BAN"]
[SourceTitle "playchess.com"]
[Source "ChessBase"]
[SourceQuality "1"]
[TimeControl "40/5400+30:1800+30"]

{[%evp 10,100,14,12,24,22,40,-3,-2,-13,5,0,17,-14,-14,-15,-10,-31,0,-8,0,0,-12,-32,24,24,25,10,19,-3,-3,-5,0,-4,0,0,0,-50,-31,-55,-10,-61,0,-133,-125,-300,-292,-297,-275,-217,-160,-157,-137,-196,-139,-258,-262,-267,-264,-271,-260,-337,-329,-414,-424,-389,-312,-302,-310,-312,-229,-162,-75,-75,0,0,0,0,0,0,0,0,0,0,0,0,0,0,0,0,0,0,0]} 1. e4 {[%emt 0:00:10]} c6 {[%emt 0:00:03]} 2. d4 {[%emt 0:00:07]} d5 {[%emt 0:00:03]} 3. e5 {[%emt 0:00:08]} Bf5 {[%emt 0:00:01]} 4. Nd2 {[%emt 0:00:13]} e6 {[%emt 0:00:02]} 5. Nb3 {[%emt 0:00:08]} Nd7 {[%emt 0:00:05]} 6. Nf3 {[%emt 0:00:06]} Ne7 {[%emt 0:01:05] 6...Qc7 is the modern continuation. B12: Caro-Kann: Advance Variation.} 7. Be2 {[%emt 0:00:09]} c5 {[%emt 0:00:37]} 8. c3 {[%emt 0:00:27]} Nc6 {[%emt 0:00:02]} 9. O-O {[%emt 0:00:29]} Be7 {[%emt 0:00:09]} 10. dxc5 {[%emt 0:02:41]} Nxc5 {[%emt 0:03:48] [#]} 11. Nxc5 $146 {[%emt 0:04:36]} ({Predecessor:} 11. Nbd4 Bg4 12. Bb5 Rc8 13. b4 Bxf3 14. Qxf3 Ne4 15. Qd3 O-O 16. Nxc6 bxc6 17. Ba6 {0-1 (60) Kiseleva,E (1617)-Popova,D (1505) Saratov 2014}) 11... Bxc5 {[%emt 0:00:04]} 12. b4 {[%emt 0:00:45]} Bb6 {[%emt 0:00:59]} 13. b5 {[%emt 0:01:19]} Ne7 {[%emt 0:13:30]} 14. Ba3 {[%emt 0:03:12]} Rc8 {[%emt 0:03:26]} 15. Rc1 {[%emt 0:01:54]} O-O {[%emt 0:01:23]} 16. Nd4 {[%emt 0:01:22]} Bc5 {[%emt 0:01:37]} (16... Re8 $15) 17. Bxc5 $11 {[%emt 0:01:43]} Rxc5 {[%emt 0:00:01]} 18. Qd2 {[%emt 0:00:45]} h6 {[%emt 0:02:37]} 19. Qe3 {[%emt 0:01:04] Strongly threatening Nxf5.} Qb6 {[%emt 0:07:07]} 20. g4 {[%emt 0:01:47]} Be4 {[%emt 0:01:46]} 21. f3 {[%emt 0:00:16]} Bg6 {[%emt 0:00:25]} 22. f4 {[%emt 0:02:49]} Rfc8 {[%emt 0:03:17]} 23. Rf3 {[%emt 0:02:52]} (23. f5 exf5 24. h4 (24. gxf5 Bxf5 25. Rf2 Be4 $17) (24. Nxf5 $2 Nxf5 25. gxf5 Bxf5 $19) 24... fxg4 25. Bxg4 Rf8 $17) (23. h4 $11) 23... Be4 $15 {[%emt 0:08:53]} 24. Rg3 {[%emt 0:00:32]} R5c7 {[%emt 0:08:46]} 25. a4 {[%emt 0:13:00]} (25. h4 $1 $11) 25... h5 {[%emt 0:06:27]} (25... Qa5 $15) 26. a5 {[%emt 0:08:34]} (26. gxh5 $11 Qa5 27. c4 (27. h6 g6 $17)) 26... Qxa5 $17 {[%emt 0:00:28]} 27. f5 $2 {[%emt 0:03:26]} (27. gxh5 $17 {is a better defense.} Nf5 28. Nxf5 Bxf5 29. Qd2 (29. h6 $2 g6 $19)) 27... h4 $19 {[%emt 0:02:48]} ({And not} 27... exf5 28. gxh5 Kh7 29. Qg5 $17) 28. Rh3 {[%emt 0:05:11]} exf5 {[%emt 0:00:32]} 29. e6 {[%emt 0:01:37]} fxe6 {[%emt 0:04:17]} 30. Nxe6 {[%emt 0:01:16] [#]} Rd7 {[%emt 0:05:05]} 31. Nd4 {[%emt 0:02:03]} (31. Qd4 $17 Qb6 32. Qxb6 axb6 33. Nd4) 31... Qb6 {[%emt 0:02:12]} ({Worse is} 31... Rdc7 32. gxf5 Rf8 33. Bg4 $17) (31... f4 $19 32. Qxf4 Ng6) 32. Rxh4 {[%emt 0:02:55]} (32. Nxf5 $17 Qxe3+ 33. Rxe3) 32... f4 {[%emt 0:01:30]} 33. Qf2 {[%emt 0:03:27]} Rdc7 {[%emt 0:00:41]} 34. Rh3 {[%emt 0:02:19]} Ng6 {[%emt 0:03:49]} 35. g5 {[%emt 0:14:52]} f3 {[%emt 0:00:35]} 36. Rxf3 {[%emt 0:06:45]} Bxf3 {[%emt 0:00:12]} 37. Bxf3 {[%emt 0:01:01]} Nf4 {[%emt 0:01:53] White must now prevent ...Nh3+.} 38. Qe3 {[%emt 0:02:21]} Rf8 {[%emt 0:04:40]} 39. Bg4 {[%emt 0:03:50]} Rcf7 {[%emt 0:04:30]} 40. Rf1 {[%emt 0:02:37][%cal Of1f4] Threatens to win with Rxf4!} Qd6 {[%emt 0:06:24]} (40... g6 $19 {and Black stays clearly on top. aiming for ...a5.} 41. Kh1 Qc7) 41. Ne6 $17 {[%emt 0:35:25] [#] Prevents a5.} Re7 {[%emt 0:31:18]} ({Black should try} 41... Qe7 $1 $17 {And now ...Ng6 would win.} 42. Rf3 d4 43. cxd4 Nd5 44. Rxf7 Rxf7) 42. Rxf4 $11 {[%emt 0:00:22] Dancing on a razor blade. The position is equal.} Rxf4 {[%emt 0:00:12]} 43. Qxf4 {[%emt 0:00:07]} Rxe6 {[%emt 0:00:11]} 44. Bxe6+ {[%emt 0:00:00]} Qxe6 {[%emt 0:00:00][%mdl 4096] Endgame KQ-KQ} 45. h4 {[%emt 0:00:00]} Qe1+ {[%emt 0:00:00]} 46. Kh2 {[%emt 0:00:00]} Qxc3 {[%emt 0:00:00]} 47. h5 {[%emt 0:00:00]} Qc2+ {[%emt 0:00:00]} 48. Kg3 {[%emt 0:00:00]} Qd3+ {[%emt 0:00:00]} 49. Kf2 {[%emt 0:00:00]} Qc2+ {[%emt 0:00:00]} 50. Kg3 {[%emt 0:00:00]} Qd3+ {[%emt 0:00:00] And White is the lucky defender.   Weighted Error Value: White=0.25 (precise) /Black=0.22 (precise)} 1/2-1/2

[Event "Bangabandhu Premier Div League 2022"]
[Site "Dhaka"]
[Date "2022.12.04"]
[Round "5.4"]
[White "Jamal Uddin"]
[Black "Chowdhury, Sohel"]
[Result "1/2-1/2"]
[ECO "D30"]
[WhiteElo "2092"]
[BlackElo "2004"]
[Annotator "TA"]
[PlyCount "184"]
[EventDate "2022.12.01"]
[EventCountry "BAN"]
[SourceTitle "playchess.com"]
[Source "ChessBase"]
[SourceQuality "1"]
[TimeControl "40/5400+30:1800+30"]

{[%evp 9,184,8,29,5,22,22,35,26,20,21,18,21,20,8,6,-13,-5,-8,-5,-11,9,-20,27,10,14,0,10,-29,-24,-51,-38,-10,-16,-180,0,-18,0,-28,-30,-121,0,0,0,0,0,0,9,19,31,13,14,8,56,53,56,60,51,31,79,57,121,62,53,25,33,19,25,27,50,43,58,40,42,32,71,68,83,46,39,0,87,0,24,0,38,0,0,0,17,12,174,189,178,170,221,159,200,214,384,380,371,318,355,359,299,306,337,156,132,163,145,0,246,261,1253,1241,962,579,453,381,370,358,302,258,199,24,136,0,129,0,142,0,29,21,22,0,106,0,0,5,0,0,0,0,0,0,0,0,0,0,61,0,0,0,0,0,0,0,0,0,0,0,0,0,0,0,0,0,0,0,0,0,0,0,0,0,0]} 1. Nf3 {[%emt 0:00:37]} d5 {[%emt 0:00:15]} 2. d4 {[%emt 0:00:10]} c6 {[%emt 0:00:25]} 3. c4 {[%emt 0:00:49]} Nf6 {[%emt 1:31:20]} 4. e3 {[%emt 1:30:54]} e6 {[%emt 0:00:30]} 5. Qc2 {[%emt 0:00:30]} Nbd7 {[%emt 0:00:00]} 6. b3 {D30: Queen's Gambit Declined: Systems without Nc3.} Bd6 {[%emt 0:00:00]} 7. Bb2 {[%emt 0:00:00]} Ne4 8. Bd3 {[%emt 0:00:00] White is slightly better.} f5 9. O-O {[%emt 0:00:00]} O-O {[%emt 0:00:00]} 10. Nbd2 {[%emt 0:00:00]} Qf6 {[%emt 0:00:00]} 11. a4 {[%emt 0:00:00] [#]} (11. Be2 {seems wilder.} b6 12. c5 Nxd2 13. cxd6 Nxf1 14. Qxc6 Nxe3 15. Qxa8 Ba6 16. Qxa7 Bxe2 17. fxe3 Bxf3 18. gxf3 Rf7 19. Qa8+) 11... a5 $146 {[%emt 0:00:00]} (11... g5 {is interesting.} 12. Be2 g4 13. Nxe4 fxe4 14. Ne5 Nxe5 15. dxe5 Bxe5 16. Bxe5 Qxe5 17. Bxg4 Rf7) ({Predecessor:} 11... g5 12. Ba3 Bxa3 13. Rxa3 g4 14. Ne1 Qe7 15. Ra2 Ndf6 16. Be2 a5 17. Nd3 Nxd2 18. Qxd2 {1-0 (39) Anwesh,U (2366)-Paszewski,M (2157) Lvov 2014}) 12. Ba3 {[%emt 0:00:00]} (12. Be2 {seems wilder.} Qh6 13. g3 Qh3 14. Ba3) 12... Bxa3 {[%emt 0:00:00]} 13. Rxa3 {[%emt 0:00:00]} g5 {[%emt 0:00:00]} 14. Ne1 {[%emt 0:00:00]} g4 {[%emt 0:00:00]} 15. f3 {[%emt 0:00:00] [#] Inhibits e5.} gxf3 {[%emt 0:00:00]} (15... Qh6 $1 {deserves consideration.} 16. f4 (16. fxe4 Qxe3+ 17. Kh1 fxe4 $11) 16... b6) 16. Rxf3 {[%emt 0:00:00][%cal Rd3e4]} Qe7 {[%emt 0:00:00]} 17. Ra1 {[%emt 0:00:00]} Ndf6 {[%emt 0:00:00]} 18. Nf1 {[%emt 0:00:00]} (18. Be2 {is more complex.} Ng4 19. h3 Ngf6 20. Nd3) 18... Bd7 {[%emt 0:00:00]} (18... b6 {is interesting.} 19. Qe2 Ng4 20. Ng3 Qh4) 19. Rd1 {[%emt 0:00:00]} Be8 {[%emt 0:00:00]} 20. Ng3 {[%emt 0:00:00]} Bg6 {[%emt 0:00:00]} (20... Rd8 {looks sharper.} 21. Rc1 Ng4 22. h3 Ngf6) 21. Nf1 $2 {[%emt 0:00:00]} (21. Be2 $11) 21... Be8 $2 {[%emt 0:00:00]} (21... Bh5 $19 22. Kh1 Qg7) 22. Ng3 $11 Bg6 {[%emt 0:09:00]} 23. Rc1 {[%emt 0:00:00]} Ng4 {[%emt 0:00:00][%cal Og4h2] White must now prevent ...Nxh2!} 24. h3 (24. Nf1 $1 $11) 24... Qh4 {[%emt 0:00:00]} 25. Nf1 Ngf6 {[%emt 0:00:00]} 26. Rf4 Qh6 {[%emt 0:02:00]} 27. Nf3 {[%emt 0:11:00]} Nh5 {[%emt 0:00:00]} 28. Rh4 {[%emt 0:00:00]} Qg7 {[%emt 0:01:00]} 29. Qe2 {[%emt 0:00:00]} Qe7 {[%emt 0:00:00]} (29... Nhf6 {feels hotter.} 30. Ne5 Be8 31. Qe1 Kh8) 30. Qe1 {[%emt 0:00:00]} Nhf6 {[%emt 0:00:00]} (30... c5 $11 {is more appropriate.}) 31. Ne5 Nd7 {[%emt 0:01:30]} 32. Nxd7 {[%emt 0:00:00]} Qxd7 {[%emt 0:00:00]} 33. Nh2 {[%emt 0:00:00][%cal Bf1h2,Bh2f3,Bf3e5][%mdl 32]} (33. cxd5 {simplifies} exd5 34. Bxe4 fxe4 35. Ng3) 33... Qc7 {[%emt 0:00:00]} (33... Ng5 $14) 34. Nf3 $16 {[%emt 0:00:00]} Rf7 {[%emt 0:00:00]} (34... Nf6 $14) 35. Rc2 {[%emt 0:00:00]} (35. Ne5 $16) 35... Rg7 $14 {[%emt 0:00:00]} 36. Bxe4 {[%emt 0:00:00]} dxe4 {[%emt 0:00:00]} 37. Ne5 {[%emt 0:00:00]} c5 {[%emt 0:00:00]} 38. Rf4 {[%emt 0:00:00]} cxd4 {[%emt 0:00:00]} 39. exd4 {[%emt 0:00:00]} Qe7 {[%emt 0:00:00]} 40. Qe2 {[%emt 0:06:30]} Rd8 41. Qe3 {[%emt 0:00:39]} Qa3 {[%emt 0:33:31]} 42. Rd2 {[%emt 0:00:59]} (42. Rf1 {with more complications.} Bh5 43. g4 Qd6 44. Rg2) 42... Qe7 {[%emt 0:00:49]} 43. c5 {[%emt 0:01:16] White is more active.} Be8 {[%emt 0:00:27]} 44. Nc4 {[%emt 0:02:18]} (44. d5 {seems wilder.} Qg5 45. d6 Bc6 46. Kh2) 44... Qc7 {[%emt 0:00:55]} (44... h5 $11) 45. Rdf2 {[%emt 0:05:15]} (45. g4 $16) 45... Bc6 {[%emt 0:00:33]} 46. Qc3 {[%emt 0:00:56]} Ra8 {[%emt 0:00:00]} 47. Nd6 {[%emt 0:00:00]} Bd5 {[%emt 0:00:00]} 48. g4 {[%emt 0:00:00]} Rd8 {[%emt 0:00:00]} (48... h5 $5 {[%cal Ra8d8]}) 49. Qe3 {[%emt 0:00:00]} Rxd6 $2 {[%emt 0:00:00]} (49... Kh8 $11 {and Black is okay.}) 50. cxd6 $18 {[%emt 0:00:00]} Qxd6 {[%emt 0:00:00]} 51. Rg2 $1 {[%emt 0:00:00]} Qd7 {[%emt 0:00:00]} (51... Qf8 $142 52. gxf5 exf5 53. Rxg7+ Qxg7+ 54. Kh2 Qg6) 52. gxf5 {[%emt 0:00:00]} exf5 {[%emt 0:00:00]} 53. Rff2 {[%emt 0:00:00]} Kh8 {[%emt 0:00:00]} (53... Rg6 54. h4 Bf7) 54. Rxg7 {[%emt 0:00:00]} Qxg7+ {[%emt 0:00:00][%mdl 4096] Endgame KQR-KQB} 55. Rg2 {[%emt 0:00:00]} Qf6 {[%emt 0:05:45]} 56. Qf4 {[%emt 0:00:00]} h6 {[%emt 0:00:00]} (56... Qxd4+ $2 57. Kh2 $18) 57. Kh2 {[%emt 0:00:00]} Kh7 {[%emt 0:00:14] [#]} 58. Rf2 {[%emt 0:03:15]} (58. Qc7+ $1 $18 {and the rest is easy.} Kh8 59. Qc8+ (59. Qxa5 Qd6+ 60. Kg1 Kh7 $18) 59... Kh7 60. Qd7+ Qf7 61. Qxf7+ Bxf7 62. Kg3) 58... Kg6 $16 {[%emt 0:00:19]} 59. h4 {[%emt 0:00:59][%cal Bh3h4,Bh4h5][%mdl 32]} Be6 {[%emt 0:00:45] Against h5+} 60. d5 {[%emt 0:02:22]} (60. h5+ $16 Kf7 61. Rd2) 60... Bd7 $2 {[%emt 0:00:37]} (60... Bxd5 $11 {and Black stays safe.} 61. h5+ Kf7) 61. Rg2+ $18 {[%emt 0:04:51]} Kh7 $2 {[%emt 0:00:32]} (61... Kh5 62. Kh1 Qa1+ 63. Rg1 Qf6) 62. h5 {[%emt 0:00:22]} Be8 {[%emt 0:00:20]} 63. Rf2 {[%emt 0:01:13]} Bd7 {[%emt 0:00:28]} 64. Qxe4 {[%emt 0:01:33]} Qd6+ {[%emt 0:00:30]} 65. Qf4 {[%emt 0:00:03]} Qxd5 {[%emt 0:00:04]} 66. Rd2 {[%emt 0:00:13]} Qf7 {[%emt 0:01:06]} 67. Qh4 $2 {[%emt 0:07:09]} (67. Kg1 $18) 67... Bc6 {[%emt 0:00:22] [#]} (67... Be6 $1 $11) 68. Rd6 {[%emt 0:01:14]} (68. Kg1 $1 $16 {[%cal Rg1f2]}) 68... Be4 {[%emt 0:00:34]} (68... Qe8 $11 {keeps the balance.} 69. Rd2 Qe3) 69. Rd2 {[%emt 0:04:38]} (69. Rg6 $16 {Strongly threatening Qf4.} Qc7+ 70. Kh3 (70. Qg3 $2 f4 $19)) 69... Bf3 {[%emt 0:00:33]} (69... Bc6 $11) 70. Rf2 {[%emt 0:00:43]} (70. Kg1 $16) 70... Bxh5 {[%emt 0:00:12]} 71. Qc4 {[%emt 0:03:17]} Qf6 {[%emt 0:00:49]} 72. Qc7+ {[%emt 0:01:36][%mdl 1024] White has compensation.} Kg6 {[%emt 0:00:20]} (72... Bf7 $11 {remains equal.}) 73. Qg3+ {[%emt 0:00:25]} (73. Qxa5 $16 {And now Qd2 would win.} Qd6+ 74. Kg1) 73... Bg4 $11 {[%emt 0:00:20]} 74. Rd2 {[%emt 0:00:17] aiming for Rd6.} Kh5 {[%emt 0:00:21]} 75. Qd6 {[%emt 0:01:14]} Qh4+ {[%emt 0:00:12]} 76. Kg1 {[%emt 0:00:09]} Qe1+ {[%emt 0:00:30]} 77. Kg2 {[%emt 0:00:24]} Qe4+ {[%emt 0:00:50]} 78. Kh2 {[%emt 0:00:22]} Qf3 {[%emt 0:00:55]} 79. Qg3 {[%emt 0:00:24]} Qf1 {[%emt 0:00:35]} ({Black should try} 79... Kg5 $11) 80. Qf2 {[%emt 0:01:18]} ({Better is} 80. Qe3 $1 $14) 80... Qh3+ {[%emt 0:00:17] The position is equal.} 81. Kg1 {[%emt 0:01:06]} Qxb3 {[%emt 0:00:30]} 82. Qf4 {[%emt 0:00:00]} Qb1+ {[%emt 0:00:33]} 83. Kf2 {[%emt 0:00:11]} Qb6+ {[%emt 0:00:35]} 84. Kg2 {[%emt 0:00:36]} Qc6+ {[%emt 0:00:32]} 85. Kg1 {[%emt 0:00:36] Threatens to win with Rh2+.} Qb6+ {[%emt 0:00:30]} 86. Kh2 {[%emt 0:00:22]} Qf6 {[%emt 0:00:14]} 87. Rd6 {[%emt 0:00:28]} Qg5 {[%emt 0:00:45]} 88. Qe5 {[%emt 0:00:31]} Qh4+ {[%emt 0:00:34]} 89. Kg1 {[%emt 0:00:07] White wants to mate with Qe8+.} Qg5 {[%emt 0:00:19]} 90. Qe8+ {[%emt 0:00:09]} Kh4 {[%emt 0:00:18] ( -> ...Bh5+)} 91. Qe1+ {[%emt 0:00:29]} Kh5 {[%emt 0:00:04] ...Bh3+ is the strong threat.} 92. Qe8+ {[%emt 0:00:37]} Kh4 {[%emt 0:00:08] Black defended with fortune.   Weighted Error Value: White=0.26 (precise) /Black=0.35} 1/2-1/2

[Event "Bangabandhu Premier Div League 2022"]
[Site "Dhaka"]
[Date "2022.12.04"]
[Round "5.5"]
[White "Murshed, Niaz"]
[Black "Hossain, Enamul"]
[Result "0-1"]
[ECO "A38"]
[WhiteElo "2419"]
[BlackElo "2392"]
[Annotator "TA"]
[PlyCount "120"]
[EventDate "2022.11.30"]
[EventType "team-tourn"]
[EventCountry "BAN"]
[SourceTitle "playchess.com"]
[Source "ChessBase"]
[SourceQuality "1"]
[TimeControl "40/5400+30:1800+30"]

{[%evp 18,120,18,13,17,10,18,22,20,9,9,7,9,6,0,-1,13,0,3,-17,-22,-17,-16,-27,-21,-27,-28,-28,-25,-41,-19,-23,0,-15,-6,0,-2,-75,0,0,0,0,56,2,4,0,4,0,0,-44,-60,-208,-127,-132,-48,-156,-58,-77,-27,-51,-64,-45,-45,-51,-68,-187,-149,-149,-88,-332,-308,-386,-295,-276,0,-320,-52,-33,-37,-40,0,-15,-34,-107,-8,-8,-8,-8,-8,-8,-8,-8,-8,-31,-23,-43,-8,-2041,-1677,-2312,-1852,-29966,-29964,-29965,-29965]} 1. Nf3 {[%emt 0:00:14]} Nf6 {[%emt 0:01:10]} 2. g3 {[%emt 0:00:23]} g6 {[%emt 0:01:47]} 3. b3 {[%emt 0:00:46]} Bg7 {[%emt 0:00:14]} 4. Bb2 {[%emt 0:00:04]} c5 {[%emt 0:00:18]} 5. Bg2 {[%emt 0:05:39]} d6 {[%emt 0:00:26]} 6. O-O {[%emt 0:01:26]} e5 {[%emt 0:00:29]} 7. c4 {[%emt 0:02:04]} Nc6 {[%emt 0:01:08]} 8. Nc3 {[%emt 0:01:15]} O-O {[%emt 0:01:42]} 9. d3 {[%emt 0:00:53]} h6 {[%emt 0:05:09]} 10. Nd2 {[%emt 0:05:32][%cal Bf3d2,Bd2e4,Be4c3,Bc3d5][%mdl 32]} Be6 {[%emt 0:00:54] A38: Symmetrical English vs ...g6: 4 Bg2 Bg7 5 Nf3 Nf6.} 11. Nde4 {[%emt 0:00:50]} Ne8 {[%emt 0:10:50]} 12. Nd5 {[%emt 0:02:37]} Ne7 {[%emt 0:05:52] The position is equal.} 13. Nec3 {[%emt 0:01:15]} Nxd5 {[%emt 0:00:53]} 14. Nxd5 {[%emt 0:03:04]} Nc7 {[%emt 0:02:20] [#]} 15. Ne3 $146 {[%emt 0:13:36]} ({Predecessor:} 15. Nc3 Rb8 16. e3 d5 17. Qc2 d4 18. exd4 exd4 19. Ne4 b6 20. Rae1 f5 21. Nd2 {1-0 (76) Maghsoodloo,P (2649)-Hakobyan,A (2554) Manavgat 2018}) 15... Rb8 {[%emt 0:02:28]} 16. Qd2 {[%emt 0:00:31]} b6 {[%emt 0:05:37]} 17. f4 {[%emt 0:01:30]} f5 {[%emt 0:00:38]} 18. Nd5 {[%emt 0:07:13]} Bxd5 {[%emt 0:04:42]} 19. cxd5 {[%emt 0:07:16]} exf4 {[%emt 0:00:39]} 20. gxf4 {[%emt 0:02:34]} Qe7 {[%emt 0:06:32]} 21. Bxg7 {[%emt 0:22:06]} Qxg7 {[%emt 0:01:14]} 22. Kh1 {[%emt 0:00:04]} Rbe8 {[%emt 0:05:54]} 23. Rae1 {[%emt 0:01:55]} Kh7 {[%emt 0:00:54]} (23... Nb5 $5 {[%cal Rg7c3]}) 24. e3 {[%emt 0:02:12]} Qf6 {[%emt 0:08:35]} 25. Bf3 {[%emt 0:01:24]} Re7 {[%emt 0:01:11]} 26. Rg1 {[%emt 0:03:07]} Rfe8 {[%emt 0:02:25]} 27. a4 {[%emt 0:00:45]} (27. Re2 $11) 27... b5 {[%emt 0:06:53]} (27... Na6 $1 $17) 28. e4 $11 {[%emt 0:10:18]} bxa4 {[%emt 0:01:38]} 29. bxa4 {[%emt 0:00:06]} Rb8 {[%emt 0:00:49]} (29... Na6 $11) 30. exf5 {[%emt 0:01:52]} (30. e5 $14 Qf8 31. Rg3 (31. exd6 Rxe1 32. Qxe1 Qxd6 $14) (31. Qg2 Rg7 $11)) 30... gxf5 {[%emt 0:00:48]} 31. Rxe7+ {[%emt 0:00:43]} Qxe7 {[%emt 0:00:02]} 32. Qg2 {[%emt 0:00:50] White wants to mate with Qg6+.} Qf7 {[%emt 0:02:38] Against Qg6+} 33. Bh5 {[%emt 0:01:12]} Qxd5 {[%emt 0:02:21]} 34. Bg6+ {[%emt 0:00:26]} ({White has to play} 34. Bf3 $15 Qg8 35. Qh3) 34... Kh8 {[%emt 0:00:45]} 35. Bxf5 {[%emt 0:00:11][%mdl 64]} Qxg2+ {[%emt 0:00:06]} (35... Rb2 $1 $17 {[%cal Rb2g2]} 36. Qe4 Rb4 37. Qxd5 Nxd5) 36. Rxg2 $17 {[%emt 0:00:53][%mdl 4096] Endgame KRB-KRN} (36. Kxg2 $15 Rg8+ 37. Kf2) 36... Rb1+ {[%emt 0:00:25]} (36... Nd5 $142 $1 {[%cal Rd5e3]} 37. Rg1 Rf8) 37. Rg1 {[%emt 0:00:02]} Rxg1+ {[%emt 0:00:07]} 38. Kxg1 {[%emt 0:00:07] KB-KN} Nd5 {[%emt 0:00:04]} 39. Kf2 {[%emt 0:00:59]} Nxf4 {[%emt 0:00:06]} 40. Kf3 {[%emt 0:00:04]} Nd5 {[%emt 0:00:06]} 41. a5 {[%emt 0:30:59]} (41. Be6 $15 Nc3 42. a5) 41... Kg7 {[%emt 0:39:03] Hoping for ...Kf6.} 42. Be6 {[%emt 0:00:32]} Nc3 {[%emt 0:01:10]} ({Black should try} 42... Nb4 $1 {[%cal Og7f6] ...Kf6! is the strong threat.} 43. Ke4 Kf6) 43. Bc4 $2 {[%emt 0:00:00]} (43. Kf4 $17) 43... Kf6 $19 {[%emt 0:00:00]} 44. Kg4 {[%emt 0:00:00]} Nd1 {[%emt 0:00:00] White must now prevent ...Ne3+.} 45. Kf4 {[%emt 0:00:00] Prevents Ne3.} Nc3 $2 {[%emt 0:00:00]} (45... Nb2 $1 $19 {[%cal Rb2c4] aiming for ...Nxc4.} 46. Bb5 Ke6) 46. h4 $2 {[%emt 0:00:00][%mdl 8192]} (46. Kg4 $1 $11 {and White stays safe.}) 46... Kg6 $2 {[%emt 0:00:00]} ({Better is} 46... d5 $19 47. Bb3 Ke6) 47. Kg4 $15 {[%emt 0:00:00]} Ne2 {[%emt 0:00:00]} 48. Kf3 $1 {[%emt 0:00:00]} Nc3 {[%emt 0:00:00]} 49. Kg4 $1 {[%emt 0:00:00]} d5 {[%emt 0:00:00]} 50. Bb3 {[%emt 0:00:00] [#]} d4 {[%emt 0:00:00]} (50... a6 $1 $17 51. Bc2 Kf6) 51. Kf4 $11 {[%emt 0:00:00]} Kf6 {[%emt 0:00:00]} 52. a6 {[%emt 0:00:00]} Nb1 {[%emt 0:06:34]} 53. Ba2 {[%emt 0:02:46]} Nd2 {[%emt 0:00:10]} 54. h5 {[%emt 0:01:16]} Nf1 {[%emt 0:00:28]} 55. Bg8 {[%emt 0:01:55]} Ne3 {[%emt 0:00:40] Strongly threatening ...Nf5.} 56. Bb3 {[%emt 0:00:12]} Nf5 {[%emt 0:01:52]} (56... Ke7 $5 {[%cal Re7d6]}) 57. Ke4 $2 {[%emt 0:01:23][%mdl 8192] [#]} (57. Bd1 $11) 57... Ng3+ $1 $19 {[%emt 0:00:16]} 58. Kd5 {[%emt 0:00:10]} Nxh5 {[%emt 0:00:07]} 59. Kxc5 {[%emt 0:00:11]} Ke5 {[%emt 0:00:01]} 60. Kc6 {[%emt 0:02:25]} Nf4 {[%emt 0:00:12] Weighted Error Value: White=0.66/Black=0.35} 0-1